fUSD/lending_fUSD_20260528
["ID","MTS","AMOUNT","RATE_DAILY","PERIOD"]
[423162739,1779898254000,-151.0,0.00038356,30]
[423162734,1779898254000,-151.0,0.00038356,30]
[423162735,1779898254000,-511.751654,0.00038356,30]
[423162740,1779898254000,-708.380572,0.00038356,30]
[423162738,1779898254000,-151.0,0.00038356,30]
[423162733,1779898254000,-708.380572,0.00038356,30]
[423162736,1779898254000,-708.380572,0.00038356,30]
[423162742,1779898254000,-151.0,0.00038356,30]
[423162737,1779898254000,-511.751654,0.00038356,30]
[423162744,1779898254000,-151.0,0.00038356,30]
[423162745,1779898254000,-151.0,0.00038356,30]
[423162683,1779898254000,-1144.19676,0.00038356,7]
[423162716,1779898254000,-151.0,0.00038356,30]
[423162718,1779898254000,-1310.490765,0.00038356,30]
[423162741,1779898254000,-511.751654,0.00038356,30]
[423162717,1779898254000,-151.0,0.00038356,30]
[423162689,1779898254000,-1144.19676,0.00038356,7]
[423162712,1779898254000,-227.545438,0.00038356,30]
[423162687,1779898254000,-151.0,0.00038356,30]
[423162693,1779898254000,-215.461528,0.00038356,30]
[423162690,1779898254000,-1144.19676,0.00038356,7]
[423162688,1779898254000,-151.0,0.00038356,30]
[423162692,1779898254000,-151.0,0.00038356,30]
[423162691,1779898254000,-228.447021,0.00038356,30]
[423162696,1779898254000,-1025.572403,0.00038356,30]
[423162695,1779898254000,-151.0,0.00038356,30]
[423162703,1779898254000,-526.540791,0.00038356,30]
[423162706,1779898254000,-896.806125,0.00038356,30]
[423162698,1779898254000,-1025.572403,0.00038356,30]
[423162704,1779898254000,-896.806125,0.00038356,30]
[423162702,1779898254000,-526.540791,0.00038356,30]
[423162705,1779898254000,-526.540791,0.00038356,30]
[423162710,1779898254000,-227.545438,0.00038356,30]
[423162714,1779898254000,-151.0,0.00038356,30]
[423162709,1779898254000,-896.806125,0.00038356,30]
[423162708,1779898254000,-227.545438,0.00038356,30]
[423162715,1779898254000,-227.545438,0.00038356,30]
[423162711,1779898254000,-896.806125,0.00038356,30]
[423162713,1779898254000,-151.0,0.00038356,30]
[423162699,1779898254000,-151.0,0.00038356,30]
[423162701,1779898254000,-182.202885,0.00038356,30]
[423162697,1779898254000,-1025.572403,0.00038356,30]
[423162700,1779898254000,-1025.572403,0.00038356,30]
[423162707,1779898254000,-526.540791,0.00038356,30]
[423162790,1779898255000,-151.0,0.00038356,30]
[423162789,1779898255000,-396.996399,0.00038356,30]
[423162793,1779898255000,-1008.44916,0.00038356,30]
[423162787,1779898255000,-151.0,0.00038356,30]
[423162786,1779898255000,-841.867711,0.00038356,30]
[423162784,1779898255000,-841.867711,0.00038356,30]
[423162791,1779898255000,-1008.44916,0.00038356,30]
[423162796,1779898255000,-151.0,0.00038356,30]
[423162771,1779898255000,-613.690197,0.00038356,30]
[423162765,1779898255000,-269.421428,0.00038356,30]
[423162774,1779898255000,-613.690197,0.00038356,30]
[423162773,1779898255000,-771.277333,0.00038356,30]
[423162785,1779898255000,-841.867711,0.00038356,30]
[423162792,1779898255000,-396.996399,0.00038356,30]
[423162807,1779898255000,-209.599637,0.00038356,30]
[423162788,1779898255000,-396.996399,0.00038356,30]
[423162795,1779898255000,-151.0,0.00038356,30]
[423162808,1779898255000,-1710.42265,0.00038356,30]
[423162798,1779898255000,-371.933807,0.00038356,30]
[423162797,1779898255000,-1008.44916,0.00038356,30]
[423162800,1779898255000,-1008.44916,0.00038356,30]
[423162801,1779898255000,-151.0,0.00038356,30]
[423162809,1779898255000,-151.0,0.00038356,30]
[423162810,1779898255000,-371.933807,0.00038356,30]
[423162803,1779898255000,-1710.42265,0.00038356,30]
[423162806,1779898255000,-157.861288,0.00038356,30]
[423162805,1779898255000,-371.933807,0.00038356,30]
[423162802,1779898255000,-371.933807,0.00038356,30]
[423162770,1779898255000,-771.277333,0.00038356,30]
[423162794,1779898255000,-396.996399,0.00038356,30]
[423162768,1779898255000,-269.421428,0.00038356,30]
[423162749,1779898255000,-171.302303,0.00038356,30]
[423162758,1779898255000,-151.0,0.00038356,30]
[423162799,1779898255000,-151.0,0.00038356,30]
[423162751,1779898255000,-171.302303,0.00038356,30]
[423162755,1779898255000,-270.277525,0.00038356,30]
[423162754,1779898255000,-171.302303,0.00038356,30]
[423162756,1779898255000,-151.0,0.00038356,30]
[423162746,1779898255000,-151.0,0.00038356,30]
[423162747,1779898255000,-171.302303,0.00038356,30]
[423162750,1779898255000,-151.0,0.00038356,30]
[423162748,1779898255000,-151.0,0.00038356,30]
[423162753,1779898255000,-151.0,0.00038356,30]
[423162752,1779898255000,-270.277525,0.00038356,30]
[423162763,1779898255000,-613.690197,0.00038356,30]
[423162767,1779898255000,-613.690197,0.00038356,30]
[423162766,1779898255000,-771.277333,0.00038356,30]
[423162764,1779898255000,-771.277333,0.00038356,30]
[423162760,1779898255000,-244.904878,0.00038356,30]
[423162775,1779898255000,-151.0,0.00038356,30]
[423162762,1779898255000,-270.277525,0.00038356,30]
[423162759,1779898255000,-270.277525,0.00038356,30]
[423162769,1779898255000,-151.0,0.00038356,30]
[423162772,1779898255000,-269.421428,0.00038356,30]
[423162776,1779898255000,-729.849317,0.00038356,30]
[423162780,1779898255000,-151.0,0.00038356,30]
[423162778,1779898255000,-151.0,0.00038356,30]
[423162781,1779898255000,-729.849317,0.00038356,30]
[423162783,1779898255000,-841.867711,0.00038356,30]
[423162757,1779898255000,-151.0,0.00038356,30]
[423162761,1779898255000,-269.421428,0.00038356,30]
[423162782,1779898255000,-729.849317,0.00038356,30]
[423162779,1779898255000,-729.849317,0.00038356,30]
[423162777,1779898255000,-228.048487,0.00038356,30]
[423162804,1779898255000,-151.0,0.00038356,30]
[423162875,1779898255000,-150.0,0.00038494,2]
[423162812,1779898255000,-151.0,0.00038356,30]
[423162847,1779898255000,-170.946465,0.00038356,30]
[423162845,1779898255000,-170.946465,0.00038356,30]
[423162849,1779898255000,-170.946465,0.00038356,30]
[423162851,1779898255000,-151.0,0.00038356,30]
[423162861,1779898255000,-169.254848,0.00038356,30]
[423162850,1779898255000,-301.575484,0.00038356,30]
[423162862,1779898255000,-169.254848,0.00038356,30]
[423162863,1779898255000,-169.254848,0.00038356,30]
[423162857,1779898255000,-151.0,0.00038356,30]
[423162856,1779898255000,-151.0,0.00038356,30]
[423162853,1779898255000,-1064.329233,0.00038356,30]
[423162852,1779898255000,-151.0,0.00038356,30]
[423162854,1779898255000,-151.0,0.00038356,30]
[423162860,1779898255000,-1064.329233,0.00038356,30]
[423162858,1779898255000,-1064.329233,0.00038356,30]
[423162855,1779898255000,-1064.329233,0.00038356,30]
[423162859,1779898255000,-151.0,0.00038356,30]
[423162864,1779898255000,-169.254848,0.00038356,30]
[423162870,1779898255000,-150.0,0.00038411,120]
[423162866,1779898255000,-151.0,0.00038356,30]
[423162865,1779898255000,-151.0,0.00038356,30]
[423162868,1779898255000,-2317.0,0.00038396,11]
[423162872,1779898255000,-185.24638534,0.00038455,2]
[423162867,1779898255000,-1549.0,0.00038356,30]
[423162871,1779898255000,-1589.0,0.00038445,11]
[423162873,1779898255000,-1589.0,0.00038477,11]
[423162869,1779898255000,-151.0,0.000384,120]
[423162874,1779898255000,-2317.0,0.00038477,11]
[423162824,1779898255000,-866.453017,0.00038356,30]
[423162848,1779898255000,-301.575484,0.00038356,30]
[423162842,1779898255000,-151.0,0.00038356,30]
[423162876,1779898255000,-11610.85,0.000385,2]
[423162846,1779898255000,-301.575484,0.00038356,30]
[423162844,1779898255000,-301.575484,0.00038356,30]
[423162817,1779898255000,-151.0,0.00038356,30]
[423162820,1779898255000,-866.453017,0.00038356,30]
[423162811,1779898255000,-157.861288,0.00038356,30]
[423162819,1779898255000,-151.0,0.00038356,30]
[423162823,1779898255000,-235.518156,0.00038356,30]
[423162813,1779898255000,-1710.42265,0.00038356,30]
[423162818,1779898255000,-1710.42265,0.00038356,30]
[423162822,1779898255000,-866.453017,0.00038356,30]
[423162815,1779898255000,-151.0,0.00038356,30]
[423162816,1779898255000,-157.861288,0.00038356,30]
[423162821,1779898255000,-157.861288,0.00038356,30]
[423162825,1779898255000,-151.0,0.00038356,30]
[423162834,1779898255000,-195.101516,0.00038356,30]
[423162826,1779898255000,-151.0,0.00038356,30]
[423162814,1779898255000,-866.453017,0.00038356,30]
[423162827,1779898255000,-151.0,0.00038356,30]
[423162835,1779898255000,-823.790356,0.00038356,30]
[423162836,1779898255000,-151.0,0.00038356,30]
[423162839,1779898255000,-151.0,0.00038356,30]
[423162843,1779898255000,-170.946465,0.00038356,30]
[423162841,1779898255000,-823.790356,0.00038356,30]
[423162840,1779898255000,-151.0,0.00038356,30]
[423162838,1779898255000,-823.790356,0.00038356,30]
[423162831,1779898255000,-151.0,0.00038356,30]
[423162832,1779898255000,-151.0,0.00038356,30]
[423162833,1779898255000,-151.0,0.00038356,30]
[423162830,1779898255000,-151.0,0.00038356,30]
[423162828,1779898255000,-151.0,0.00038356,30]
[423162837,1779898255000,-823.790356,0.00038356,30]
[423162829,1779898255000,-151.0,0.00038356,30]
[423162908,1779898256000,-500.0,0.00038725,7]
[423162911,1779898256000,-500.0,0.00038725,7]
[423162920,1779898256000,-500.0,0.00038725,7]
[423162912,1779898256000,-500.0,0.00038725,7]
[423162909,1779898256000,-500.0,0.00038725,7]
[423162902,1779898256000,-500.0,0.00038725,7]
[423162905,1779898256000,-500.0,0.00038725,7]
[423162901,1779898256000,-500.0,0.00038725,7]
[423162907,1779898256000,-500.0,0.00038725,7]
[423162910,1779898256000,-500.0,0.00038725,7]
[423162921,1779898256000,-500.0,0.00038725,7]
[423162918,1779898256000,-500.0,0.00038725,7]
[423162915,1779898256000,-500.0,0.00038725,7]
[423162917,1779898256000,-500.0,0.00038725,7]
[423162916,1779898256000,-500.0,0.00038725,7]
[423162913,1779898256000,-500.0,0.00038725,7]
[423162919,1779898256000,-500.0,0.00038725,7]
[423162924,1779898256000,-500.0,0.00038725,7]
[423162929,1779898256000,-500.0,0.00038725,7]
[423162923,1779898256000,-500.0,0.00038725,7]
[423162930,1779898256000,-500.0,0.00038725,7]
[423162900,1779898256000,-500.0,0.00038725,7]
[423162928,1779898256000,-500.0,0.00038725,7]
[423162914,1779898256000,-500.0,0.00038725,7]
[423162904,1779898256000,-500.0,0.00038725,7]
[423162884,1779898256000,-1225.0,0.00038588,2]
[423162899,1779898256000,-500.0,0.00038725,7]
[423162926,1779898256000,-500.0,0.00038725,7]
[423162883,1779898256000,-525.0,0.00038588,2]
[423162879,1779898256000,-1589.0,0.00038544,11]
[423162877,1779898256000,-150.0,0.0003853,120]
[423162882,1779898256000,-1356.0,0.00038588,2]
[423162887,1779898256000,-161.28,0.0003859,105]
[423162881,1779898256000,-928.0,0.00038588,2]
[423162878,1779898256000,-17872.66415358,0.00038533,2]
[423162885,1779898256000,-6063.0,0.00038588,2]
[423162886,1779898256000,-3637.0,0.00038588,2]
[423162880,1779898256000,-185.24638534,0.00038555,2]
[423162888,1779898256000,-11610.85,0.000386,2]
[423162889,1779898256000,-700.0,0.00038629,60]
[423162890,1779898256000,-500.0,0.00038629,30]
[423162891,1779898256000,-580.0,0.00038629,30]
[423162892,1779898256000,-1549.0,0.0003863,30]
[423162894,1779898256000,-200.0,0.000387,16]
[423162896,1779898256000,-150.0,0.00038717,7]
[423162897,1779898256000,-150.0,0.00038724,2]
[423162895,1779898256000,-2317.0,0.00038716,11]
[423162893,1779898256000,-159.15,0.000387,30]
[423162906,1779898256000,-500.0,0.00038725,7]
[423162903,1779898256000,-500.0,0.00038725,7]
[423162898,1779898256000,-500.0,0.00038725,7]
[423162933,1779898256000,-500.0,0.00038725,7]
[423162922,1779898256000,-500.0,0.00038725,7]
[423162931,1779898256000,-500.0,0.00038725,7]
[423162964,1779898256000,-151.0,0.000389,120]
[423162966,1779898256000,-400.0,0.000389,14]
[423162967,1779898256000,-49294.0,0.000389,30]
[423162959,1779898256000,-1000.0,0.00038878,120]
[423162963,1779898256000,-28127.54,0.00038896,14]
[423162958,1779898256000,-521.0,0.00038851,30]
[423162968,1779898256000,-272.96,0.00038903,30]
[423162965,1779898256000,-2000.0,0.000389,7]
[423162962,1779898256000,-10623.64,0.00038896,14]
[423162960,1779898256000,-46247.84946388,0.00038896,6]
[423162969,1779898256000,-500.0,0.00038903,30]
[423162961,1779898256000,-91579.56,0.00038896,14]
[423162972,1779898256000,-644.0,0.00038903,30]
[423162973,1779898256000,-300.0,0.00038904,120]
[423162980,1779898256000,-300.0,0.00038904,120]
[423162975,1779898256000,-300.0,0.00038904,120]
[423162974,1779898256000,-300.0,0.00038904,120]
[423162978,1779898256000,-300.0,0.00038904,120]
[423162981,1779898256000,-300.0,0.00038904,120]
[423162979,1779898256000,-300.0,0.00038904,120]
[423162982,1779898256000,-300.0,0.00038904,120]
[423162976,1779898256000,-300.0,0.00038904,120]
[423162977,1779898256000,-300.0,0.00038904,120]
[423162932,1779898256000,-500.0,0.00038725,7]
[423162971,1779898256000,-500.0,0.00038903,30]
[423162950,1779898256000,-500.0,0.00038725,7]
[423162970,1779898256000,-500.0,0.00038903,30]
[423162955,1779898256000,-163.0,0.0003882,11]
[423162947,1779898256000,-500.0,0.00038725,7]
[423162927,1779898256000,-500.0,0.00038725,7]
[423162944,1779898256000,-500.0,0.00038725,7]
[423162942,1779898256000,-500.0,0.00038725,7]
[423162935,1779898256000,-500.0,0.00038725,7]
[423162941,1779898256000,-500.0,0.00038725,7]
[423162943,1779898256000,-500.0,0.00038725,7]
[423162938,1779898256000,-500.0,0.00038725,7]
[423162934,1779898256000,-500.0,0.00038725,7]
[423162936,1779898256000,-500.0,0.00038725,7]
[423162940,1779898256000,-500.0,0.00038725,7]
[423162937,1779898256000,-500.0,0.00038725,7]
[423162925,1779898256000,-500.0,0.00038725,7]
[423162939,1779898256000,-500.0,0.00038725,7]
[423162949,1779898256000,-617.07,0.00038725,7]
[423162954,1779898256000,-157274.0,0.000388,30]
[423162946,1779898256000,-500.0,0.00038725,7]
[423162948,1779898256000,-590.39,0.00038725,7]
[423162957,1779898256000,-500.0,0.00038846,120]
[423162951,1779898256000,-2317.0,0.0003874,11]
[423162952,1779898256000,-350.0,0.00038764,2]
[423162953,1779898256000,-330.0,0.00038795,54]
[423162956,1779898256000,-1200.0,0.00038846,120]
[423162945,1779898256000,-500.0,0.00038725,7]
[423163028,1779898257000,-350.0,0.00039207,2]
[423163022,1779898257000,-500.0,0.00039177,30]
[423163023,1779898257000,-500.0,0.00039177,30]
[423163021,1779898257000,-500.0,0.00039177,60]
[423163018,1779898257000,-288.0,0.00039105,10]
[423163019,1779898257000,-13453.90453126,0.00039168,7]
[423163014,1779898257000,-1589.0,0.00039072,11]
[423163015,1779898257000,-137975.70983442,0.000391,30]
[423163009,1779898257000,-350.0,0.00038958,2]
[423163026,1779898257000,-221.09502108,0.00039196,120]
[423163020,1779898257000,-161.28,0.0003917,116]
[423163012,1779898257000,-2317.0,0.0003902,11]
[423163025,1779898257000,-1549.0,0.00039178,30]
[423163033,1779898257000,-3594.94,0.00039259,2]
[423163029,1779898257000,-500.0,0.00039217,50]
[423163024,1779898257000,-608.0,0.00039177,30]
[423163027,1779898257000,-214.88671184,0.00039196,120]
[423163030,1779898257000,-5800.0,0.00039233,14]
[423163011,1779898257000,-152.0,0.00039,120]
[423163043,1779898257000,-180.840891,0.00039315,30]
[423163036,1779898257000,-873.9,0.00039272,30]
[423163034,1779898257000,-4180.31285755,0.00039268,120]
[423163035,1779898257000,-221.34,0.00039272,30]
[423163039,1779898257000,-151.0,0.000393,120]
[423163032,1779898257000,-4180.31285755,0.00039257,120]
[423163041,1779898257000,-504.51035548,0.00039315,120]
[423163038,1779898257000,-411.02,0.00039272,30]
[423163031,1779898257000,-163.0,0.00039236,11]
[423163016,1779898257000,-430.45,0.000391,30]
[423162989,1779898257000,-300.0,0.00038904,120]
[423163017,1779898257000,-500.0,0.00039104,16]
[423163037,1779898257000,-298.17,0.00039272,30]
[423162986,1779898257000,-300.0,0.00038904,120]
[423162985,1779898257000,-300.0,0.00038904,120]
[423162996,1779898257000,-300.0,0.00038904,120]
[423162995,1779898257000,-300.0,0.00038904,120]
[423162984,1779898257000,-300.0,0.00038904,120]
[423162983,1779898257000,-300.0,0.00038904,120]
[423162994,1779898257000,-300.0,0.00038904,120]
[423162993,1779898257000,-300.0,0.00038904,120]
[423162987,1779898257000,-300.0,0.00038904,120]
[423162990,1779898257000,-300.0,0.00038904,120]
[423162991,1779898257000,-300.0,0.00038904,120]
[423162988,1779898257000,-300.0,0.00038904,120]
[423162992,1779898257000,-300.0,0.00038904,120]
[423162997,1779898257000,-300.0,0.00038904,120]
[423162999,1779898257000,-300.0,0.00038904,120]
[423163002,1779898257000,-300.0,0.00038904,120]
[423163001,1779898257000,-300.0,0.00038904,120]
[423163000,1779898257000,-300.0,0.00038904,120]
[423163004,1779898257000,-300.0,0.00038904,120]
[423163003,1779898257000,-300.0,0.00038904,120]
[423162998,1779898257000,-300.0,0.00038904,120]
[423163005,1779898257000,-427.484109,0.00038904,120]
[423163008,1779898257000,-1524.91555555,0.00038957,30]
[423163007,1779898257000,-1524.91555555,0.00038957,30]
[423163006,1779898257000,-1549.0,0.00038904,30]
[423163010,1779898257000,-234.0,0.00038989,60]
[423163013,1779898257000,-2317.0,0.00039036,11]
[423163040,1779898257000,-11610.85,0.000393,2]
[423163102,1779898257000,-500.0,0.00039315,120]
[423163044,1779898257000,-151.0,0.00039315,30]
[423163075,1779898257000,-1000.0,0.00039315,2]
[423163079,1779898257000,-1000.0,0.00039315,2]
[423163070,1779898257000,-1000.0,0.00039315,2]
[423163078,1779898257000,-1000.0,0.00039315,2]
[423163090,1779898257000,-312.46307818,0.00039315,120]
[423163089,1779898257000,-500.0,0.00039315,120]
[423163088,1779898257000,-500.0,0.00039315,120]
[423163092,1779898257000,-500.0,0.00039315,120]
[423163087,1779898257000,-500.0,0.00039315,120]
[423163081,1779898257000,-151.0,0.00039315,30]
[423163085,1779898257000,-214.27566603,0.00039315,120]
[423163082,1779898257000,-500.0,0.00039315,120]
[423163086,1779898257000,-500.0,0.00039315,120]
[423163091,1779898257000,-500.0,0.00039315,120]
[423163084,1779898257000,-500.0,0.00039315,120]
[423163093,1779898257000,-500.0,0.00039315,120]
[423163083,1779898257000,-500.0,0.00039315,120]
[423163094,1779898257000,-500.0,0.00039315,120]
[423163098,1779898257000,-499.49499999,0.00039315,120]
[423163097,1779898257000,-500.0,0.00039315,120]
[423163095,1779898257000,-500.0,0.00039315,120]
[423163100,1779898257000,-500.0,0.00039315,120]
[423163104,1779898257000,-151.0,0.00039315,120]
[423163042,1779898257000,-151.0,0.00039315,30]
[423163096,1779898257000,-500.0,0.00039315,120]
[423163101,1779898257000,-500.0,0.00039315,120]
[423163099,1779898257000,-562.80457001,0.00039315,120]
[423163076,1779898257000,-1000.0,0.00039315,2]
[423163080,1779898257000,-924.08,0.00039315,2]
[423163103,1779898257000,-191.41868537,0.00039315,120]
[423163072,1779898257000,-1000.0,0.00039315,2]
[423163077,1779898257000,-1000.0,0.00039315,2]
[423163046,1779898257000,-151.0,0.00039315,30]
[423163050,1779898257000,-275.614806,0.00039315,30]
[423163054,1779898257000,-151.0,0.00039315,20]
[423163056,1779898257000,-151.0,0.00039315,30]
[423163055,1779898257000,-151.0,0.00039315,30]
[423163049,1779898257000,-576.4167115,0.00039315,120]
[423163047,1779898257000,-500.0,0.00039315,120]
[423163051,1779898257000,-500.0,0.00039315,120]
[423163048,1779898257000,-522.38411847,0.00039315,120]
[423163053,1779898257000,-548.51604584,0.00039315,120]
[423163052,1779898257000,-500.0,0.00039315,120]
[423163058,1779898257000,-151.0,0.00039315,30]
[423163068,1779898257000,-1000.0,0.00039315,2]
[423163045,1779898257000,-151.0,0.00039315,30]
[423163059,1779898257000,-262.392171,0.00039315,30]
[423163057,1779898257000,-151.0,0.00039315,30]
[423163071,1779898257000,-1000.0,0.00039315,2]
[423163069,1779898257000,-1000.0,0.00039315,2]
[423163066,1779898257000,-1000.0,0.00039315,2]
[423163063,1779898257000,-1000.0,0.00039315,2]
[423163073,1779898257000,-1000.0,0.00039315,2]
[423163060,1779898257000,-233.300099,0.00039315,30]
[423163061,1779898257000,-151.0,0.00039315,30]
[423163064,1779898257000,-1000.0,0.00039315,2]
[423163074,1779898257000,-1000.0,0.00039315,2]
[423163062,1779898257000,-151.0,0.00039315,30]
[423163065,1779898257000,-1000.0,0.00039315,2]
[423163067,1779898257000,-1000.0,0.00039315,2]
[423163131,1779898258000,-455.373379,0.00039315,30]
[423163145,1779898258000,-1144.19676,0.00039315,7]
[423163133,1779898258000,-602.995536,0.00039315,30]
[423163138,1779898258000,-151.0,0.00039315,30]
[423163135,1779898258000,-455.373379,0.00039315,30]
[423163141,1779898258000,-151.0,0.00039315,30]
[423163136,1779898258000,-151.0,0.00039315,30]
[423163139,1779898258000,-151.0,0.00039315,30]
[423163137,1779898258000,-151.0,0.00039315,30]
[423163143,1779898258000,-151.0,0.00039315,30]
[423163140,1779898258000,-1144.19676,0.00039315,7]
[423163149,1779898258000,-2315.18,0.00039315,120]
[423163152,1779898258000,-2315.18,0.00039315,120]
[423163144,1779898258000,-151.0,0.00039315,30]
[423163148,1779898258000,-2315.18,0.00039315,120]
[423163146,1779898258000,-1144.19676,0.00039315,7]
[423163150,1779898258000,-2315.18,0.00039315,120]
[423163154,1779898258000,-2315.18,0.00039315,120]
[423163151,1779898258000,-3703.54,0.00039315,120]
[423163153,1779898258000,-3703.54,0.00039315,120]
[423163156,1779898258000,-2315.18,0.00039315,120]
[423163166,1779898258000,-2315.18,0.00039315,120]
[423163134,1779898258000,-455.373379,0.00039315,30]
[423163147,1779898258000,-2315.18,0.00039315,120]
[423163132,1779898258000,-151.0,0.00039315,30]
[423163117,1779898258000,-500.0,0.00039315,120]
[423163125,1779898258000,-155.419164,0.00039315,30]
[423163105,1779898258000,-165.24769759,0.00039315,120]
[423163106,1779898258000,-500.0,0.00039315,120]
[423163158,1779898258000,-2315.18,0.00039315,120]
[423163108,1779898258000,-500.0,0.00039315,120]
[423163116,1779898258000,-500.0,0.00039315,120]
[423163114,1779898258000,-500.0,0.00039315,120]
[423163112,1779898258000,-500.0,0.00039315,120]
[423163111,1779898258000,-500.0,0.00039315,120]
[423163113,1779898258000,-500.0,0.00039315,120]
[423163118,1779898258000,-208.70945608,0.00039315,120]
[423163109,1779898258000,-500.0,0.00039315,120]
[423163142,1779898258000,-1144.19676,0.00039315,7]
[423163110,1779898258000,-500.0,0.00039315,120]
[423163119,1779898258000,-205.13592951,0.00039315,120]
[423163120,1779898258000,-500.0,0.00039315,120]
[423163123,1779898258000,-155.42494154,0.00039315,120]
[423163127,1779898258000,-602.995536,0.00039315,30]
[423163121,1779898258000,-500.0,0.00039315,120]
[423163130,1779898258000,-602.995536,0.00039315,30]
[423163129,1779898258000,-455.373379,0.00039315,30]
[423163126,1779898258000,-602.995536,0.00039315,30]
[423163128,1779898258000,-151.0,0.00039315,30]
[423163122,1779898258000,-500.0,0.00039315,120]
[423163124,1779898258000,-151.0,0.00039315,30]
[423163115,1779898258000,-500.0,0.00039315,120]
[423163165,1779898258000,-3703.54,0.00039315,120]
[423163107,1779898258000,-500.0,0.00039315,120]
[423163163,1779898258000,-3703.54,0.00039315,120]
[423163182,1779898258000,-3703.54,0.00039315,120]
[423163187,1779898258000,-3703.54,0.00039315,120]
[423163186,1779898258000,-2315.18,0.00039315,120]
[423163194,1779898258000,-3703.54,0.00039315,120]
[423163196,1779898258000,-242.223504,0.00039315,120]
[423163195,1779898258000,-3703.75943401,0.00039315,120]
[423163200,1779898258000,-151.0,0.00039315,30]
[423163192,1779898258000,-2315.29134604,0.00039315,120]
[423163193,1779898258000,-3703.54,0.00039315,120]
[423163202,1779898258000,-1025.572403,0.00039315,30]
[423163201,1779898258000,-1025.572403,0.00039315,30]
[423163189,1779898258000,-3703.54,0.00039315,120]
[423163199,1779898258000,-151.0,0.00039315,30]
[423163204,1779898258000,-258.43062,0.00039315,30]
[423163203,1779898258000,-1025.572403,0.00039315,30]
[423163206,1779898258000,-500.0,0.00039315,120]
[423163205,1779898258000,-1025.572403,0.00039315,30]
[423163207,1779898258000,-500.0,0.00039315,120]
[423163208,1779898258000,-500.0,0.00039315,120]
[423163209,1779898258000,-337.36,0.00039315,120]
[423163210,1779898258000,-198.2496831,0.00039315,120]
[423163211,1779898258000,-526.540791,0.00039315,30]
[423163212,1779898258000,-3668.89,0.00039315,120]
[423163157,1779898258000,-3703.54,0.00039315,120]
[423163198,1779898258000,-151.0,0.00039315,30]
[423163184,1779898258000,-2315.18,0.00039315,120]
[423163197,1779898258000,-151.0,0.00039315,30]
[423163190,1779898258000,-2315.18,0.00039315,120]
[423163185,1779898258000,-3703.54,0.00039315,120]
[423163155,1779898258000,-3703.54,0.00039315,120]
[423163159,1779898258000,-3703.54,0.00039315,120]
[423163162,1779898258000,-2315.18,0.00039315,120]
[423163160,1779898258000,-2315.18,0.00039315,120]
[423163161,1779898258000,-3703.54,0.00039315,120]
[423163164,1779898258000,-2315.18,0.00039315,120]
[423163170,1779898258000,-2315.18,0.00039315,120]
[423163173,1779898258000,-3703.54,0.00039315,120]
[423163172,1779898258000,-2315.18,0.00039315,120]
[423163176,1779898258000,-2315.18,0.00039315,120]
[423163174,1779898258000,-2315.18,0.00039315,120]
[423163167,1779898258000,-3703.54,0.00039315,120]
[423163169,1779898258000,-3703.54,0.00039315,120]